Department Family,Entity,Date,Expense Type,Expense Area,Supplier,Transaction Number,AP Amount,VAT Registration Number,Purchase Invoice Number
Department of Health,Bridgewater Community Healthcare NHS Foundation Trust,3/31/2015,OOH Comms Equip/GP Rotas,General Medical Services,DR JK AGARWALA,12734946,"28,781.87",,FEB15 2930
Department of Health,Bridgewater Community Healthcare NHS Foundation Trust,3/31/2015,Hlthcre-Foundation Trsts,Midwifery Halton,WARRINGTON & HALTON HOSPITALS NHS FOUNDATION TRUST,12848494,"39,836.67",654404741,15349689
Department of Health,Bridgewater Community Healthcare NHS Foundation Trust,3/31/2015,Hlthcre-Foundation Trsts,Midwifery Halton,WARRINGTON & HALTON HOSPITALS NHS FOUNDATION TRUST,12848797,"39,836.67",654404741,15351985
Department of Health,Bridgewater Community Healthcare NHS Foundation Trust,3/31/2015,Rent,Atherton Health Centre,COMMUNITY HEALTH PARTNERSHIPS,12909985,"64,723.20",782562113,50375610
Department of Health,Bridgewater Community Healthcare NHS Foundation Trust,3/31/2015,Rent,Pemberton Health Centre,COMMUNITY HEALTH PARTNERSHIPS,12910002,"86,868.00",782562113,50375613
Department of Health,Bridgewater Community Healthcare NHS Foundation Trust,3/31/2015,Lease Rents,Garswood HC,COMMUNITY HEALTH PARTNERSHIPS,12910021,"34,716.30",782562113,50375624
Department of Health,Bridgewater Community Healthcare NHS Foundation Trust,3/31/2015,Hlthcre-Foundation Trsts,Midwifery Halton,WARRINGTON & HALTON HOSPITALS NHS FOUNDATION TRUST,12931362,"79,673.34",654404741,15347974
Department of Health,Bridgewater Community Healthcare NHS Foundation Trust,3/31/2015,Rent,General Management,COMMUNITY HEALTH PARTNERSHIPS,12931418,"48,898.54",782562113,50373023
Department of Health,Bridgewater Community Healthcare NHS Foundation Trust,3/31/2015,Rent,General Management,COMMUNITY HEALTH PARTNERSHIPS,12931442,"27,158.53",782562113,50373051
Department of Health,Bridgewater Community Healthcare NHS Foundation Trust,3/31/2015,Rent,General Management,COMMUNITY HEALTH PARTNERSHIPS,12931462,"98,708.63",782562113,50373062
Department of Health,Bridgewater Community Healthcare NHS Foundation Trust,3/31/2015,Rent,General Management,COMMUNITY HEALTH PARTNERSHIPS,12931503,"42,857.64",782562113,50373297
Department of Health,Bridgewater Community Healthcare NHS Foundation Trust,3/31/2015,Rent,General Management,COMMUNITY HEALTH PARTNERSHIPS,12931523,"30,966.00",782562113,50373358
Department of Health,Bridgewater Community Healthcare NHS Foundation Trust,3/31/2015,Rent,General Management,COMMUNITY HEALTH PARTNERSHIPS,12931544,"69,005.44",782562113,50373359
Department of Health,Bridgewater Community Healthcare NHS Foundation Trust,3/31/2015,Rent,General Management,COMMUNITY HEALTH PARTNERSHIPS,12931564,"29,727.17",782562113,50373362
Department of Health,Bridgewater Community Healthcare NHS Foundation Trust,3/31/2015,Rent,General Management,COMMUNITY HEALTH PARTNERSHIPS,12931580,"88,600.66",782562113,50373411
Department of Health,Bridgewater Community Healthcare NHS Foundation Trust,3/31/2015,Hlthcre-Foundation Trsts,Midwifery Halton,WARRINGTON & HALTON HOSPITALS NHS FOUNDATION TRUST,12931652,"79,673.34",654404741,15351771
Department of Health,Bridgewater Community Healthcare NHS Foundation Trust,3/31/2015,Lease Rents,Bevan House,SHARMA INVESTMENTS LTD,12933796,"39,750.00",,BE17120315
Department of Health,Bridgewater Community Healthcare NHS Foundation Trust,3/31/2015,Lease Rents,Bevan House,SHARMA INVESTMENTS LTD,12934517,"39,750.00",,BE17120415
Department of Health,Bridgewater Community Healthcare NHS Foundation Trust,3/31/2015,Rent,Child Development Centre (Orford),COMMUNITY HEALTH PARTNERSHIPS,12949528,"123,937.20",782562113,50370875
Department of Health,Bridgewater Community Healthcare NHS Foundation Trust,3/31/2015,Rent,General Management,COMMUNITY HEALTH PARTNERSHIPS,12949543,"147,114.00",782562113,50370876
Department of Health,Bridgewater Community Healthcare NHS Foundation Trust,3/31/2015,Rent,General Management,COMMUNITY HEALTH PARTNERSHIPS,12949557,"139,453.20",782562113,50370877
Department of Health,Bridgewater Community Healthcare NHS Foundation Trust,3/31/2015,Rent,Child Development Centre (Orford),COMMUNITY HEALTH PARTNERSHIPS,12949574,"123,937.20",782562113,50371751
Department of Health,Bridgewater Community Healthcare NHS Foundation Trust,3/31/2015,Rent,General Management,COMMUNITY HEALTH PARTNERSHIPS,12949592,"147,114.00",782562113,50371752
Department of Health,Bridgewater Community Healthcare NHS Foundation Trust,3/31/2015,Rent,Child Development Centre (Orford),COMMUNITY HEALTH PARTNERSHIPS,12949606,"139,453.20",782562113,50371753
Department of Health,Bridgewater Community Healthcare NHS Foundation Trust,3/31/2015,Hlthcre-Foundation Trsts,Midwifery Halton,WARRINGTON & HALTON HOSPITALS NHS FOUNDATION TRUST,12949644,"159,346.68",654404741,15349688
Department of Health,Bridgewater Community Healthcare NHS Foundation Trust,3/31/2015,Drugs,Medicines Management - WARR,NHS BUSINESS SERVICES AUTHORITY,12949663,"75,958.01",654434729,1000042131
Department of Health,Bridgewater Community Healthcare NHS Foundation Trust,3/31/2015,Rent,Widnes HCRC,COMMUNITY HEALTH PARTNERSHIPS,12949717,"423,123.07",782562113,50373038
Department of Health,Bridgewater Community Healthcare NHS Foundation Trust,3/31/2015,Rent,Lowe House,COMMUNITY HEALTH PARTNERSHIPS,12949733,"722,710.67",782562113,50373046
Department of Health,Bridgewater Community Healthcare NHS Foundation Trust,3/31/2015,Rent,Newton Community Hospital,COMMUNITY HEALTH PARTNERSHIPS,12949749,"1,046,746.62",782562113,50373110
Department of Health,Bridgewater Community Healthcare NHS Foundation Trust,3/31/2015,Rent,General Management,COMMUNITY HEALTH PARTNERSHIPS,12949766,"133,439.53",782562113,50373377
Department of Health,Bridgewater Community Healthcare NHS Foundation Trust,3/31/2015,Drugs,Medicines Management - WARR,NHS BUSINESS SERVICES AUTHORITY,12949779,"79,340.21",654434729,1000042492
Department of Health,Bridgewater Community Healthcare NHS Foundation Trust,3/31/2015,Rent,Castlefields HC,COMMUNITY HEALTH PARTNERSHIPS,12949795,"100,810.80",782562113,50374630
Department of Health,Bridgewater Community Healthcare NHS Foundation Trust,3/31/2015,Rent,Chandler House,COMMUNITY HEALTH PARTNERSHIPS,12949810,"167,664.10",782562113,50374631
Department of Health,Bridgewater Community Healthcare NHS Foundation Trust,3/31/2015,Rent,Garswood HC,COMMUNITY HEALTH PARTNERSHIPS,12949826,"104,148.90",782562113,50374632
Department of Health,Bridgewater Community Healthcare NHS Foundation Trust,3/31/2015,Rent,Child Development Centre (Orford),COMMUNITY HEALTH PARTNERSHIPS,12949837,"114,265.80",782562113,50374633
Department of Health,Bridgewater Community Healthcare NHS Foundation Trust,3/31/2015,Drugs,Medicines Management - WARR,NHS BUSINESS SERVICES AUTHORITY,12949851,"76,306.87",654434729,1000042853
Department of Health,Bridgewater Community Healthcare NHS Foundation Trust,3/31/2015,Rent,Platt Bridge Community HC,COMMUNITY HEALTH PARTNERSHIPS,12950003,"286,494.00",782562113,50375614
Department of Health,Bridgewater Community Healthcare NHS Foundation Trust,3/31/2015,Rent,General Management,COMMUNITY HEALTH PARTNERSHIPS,12950017,"177,122.40",782562113,50375615
Department of Health,Bridgewater Community Healthcare NHS Foundation Trust,3/31/2015,Hlthcre-Foundation Trsts,Sexual Health,WARRINGTON & HALTON HOSPITALS NHS FOUNDATION TRUST,12950136,"62,202.00",654404741,15352011
Department of Health,Bridgewater Community Healthcare NHS Foundation Trust,3/31/2015,Independent Sector,Offender Health - Risley,DR MW HUSSAIN,12991411,"43,750.00",,0204HMPRLSLEY1415
Department of Health,Bridgewater Community Healthcare NHS Foundation Trust,3/31/2015,Computer Maintenance,Computing - ALW,NETWORK TECHNOLOGY SOLUTIONS (UK) LTD,13004539,"27,805.56",848553979,6091000133
Department of Health,Bridgewater Community Healthcare NHS Foundation Trust,3/31/2015,SrvcsRecd-FoundationTrust,Sexual Health Trafford,UNIVERSITY HOSPITAL OF SOUTH MANCHESTER NHS FOUNDATION TRUST,13027547,"32,850.66",654941709,320646
Department of Health,Bridgewater Community Healthcare NHS Foundation Trust,3/31/2015,Grants,Healthcare Libraries Unit - ALW,SUE LACEY BRYANT CONSULTING LTD,13067412,"40,000.00",,SLB034
Department of Health,Bridgewater Community Healthcare NHS Foundation Trust,3/31/2015,Rates,89 Spencer House,WARRINGTON BOROUGH COUNCIL,13116917,"51,272.00",152847160,1025579564506030000000
Department of Health,Bridgewater Community Healthcare NHS Foundation Trust,3/31/2015,Rates,81a&b Spencer House (clinic/ground floor),WARRINGTON BOROUGH COUNCIL,13116930,"25,389.50",152847160,1025463074106030000000
Department of Health,Bridgewater Community Healthcare NHS Foundation Trust,3/31/2015,Rates,Health Services at Wolves,WARRINGTON BOROUGH COUNCIL,13117110,"26,375.50",152847160,1025462974306030000000
